Cogmind - Beta 15 @@@ ROGUE MODE // 2025.05.07 @ 21:13:31 Player: Darcyisverycute Result: Destroyed by IT-RCN(R) with Subdweller Laser Performance ------------- Evolutions (0) 0 Regions Visited (3) 600 Robots Destroyed (22) 110 Value Destroyed (511) 511 Prototype IDs (2) 40 Alien Tech Used (0) 0 Bonus (0) 0 TOTAL SCORE: 1261 Bonus ------- None Cogmind --------- Core Integrity 0/250 Matter 280/300 Energy 100/100 System Corruption 0% Temperature Cool (6) Movement Treading (240) Ox1 Location -10/Subcaves Parts ------- > --- POWER (1) -------- Subdweller Power Source > --- PROPULSION (2) --- Light Treads Subdweller Monowheel > --- UTILITY (2) ------ Large Storage Unit Improved Terrain Scanner > --- WEAPON (2) ------- Mining Claw > --- INVENTORY (15) --- Ion Engine Ion Engine Subdweller Power Source Subdweller Power Source Compact Wheel Subdweller Monowheel Medium Matter Pod (53) Subdweller Optics Weapon Shielding Hacking Suite Scrap Shield Fragment (44) Peak State ------------ > --- POWER ------------ Ion Engine > --- PROPULSION ------- Light Treads Light Treads > --- UTILITY ---------- Large Storage Unit Improved Terrain Scanner > --- WEAPON ----------- Light Assault Rifle Battle Cannon > --- INVENTORY -------- Ion Engine Ion Engine Subdweller Power Source Subdweller Power Source Light Treads Compact Wheel Medium Matter Pod Structural Scanner Weapon Shielding Hacking Suite Medium Laser Light Assault Rifle Light Assault Rifle Mining Claw Scrap Shield Fragment [Rating: 12] Favorites ----------- Power Ion Engine Engine Ion Engine Propulsion Light Treads Treads Light Treads Wheel Subdweller Monowheel Utility Large Storage Unit Device Improved Terrain Scanner Storage Large Storage Unit Protection Weapon Shielding Weapon Light Assault Rifle Energy Gun Medium Laser Ballistic Gun Light Assault Rifle Ballistic Cannon Battle Cannon Slashing Weapon Mining Claw Build | -11 -10 -10 -10 ------- Run | Yrd Mat Min Sub Slots Evolved . | . . . . Power . | . . . . Propulsion . | . . . . Utility . | . . . . Weapon . | . . . . Parts Attached 21 | 7 4 2 8 Power 3 | 1 . . 2 Engine 3 | 1 . . 2 Core . | . . . . Reactor . | . . . . Propulsion 5 | 2 . . 3 Treads 4 | 2 . . 2 Leg . | . . . . Wheel 1 | . . . 1 Hover . | . . . . Flight . | . . . . Utility 6 | 2 2 1 1 Device 2 | 1 . 1 . Storage 3 | 1 2 . . Processor . | . . . . Hackware . | . . . . Protection 1 | . . . 1 Artifact . | . . . . Weapon 7 | 2 2 1 2 Energy Gun 2 | 1 1 . . Energy Cannon . | . . . . Ballistic Gun 3 | 1 . 1 1 Ballistic Cannon 1 | . . . 1 Launcher . | . . . . Special Weapon . | . . . . Impact Weapon . | . . . . Slashing Weapon 1 | . 1 . . Piercing Weapon . | . . . . Special Melee Weapon . | . . . . Unidentified Prototypes . | . . . . Parts Lost 12 | . 1 . 11 Power 2 | . . . 2 Propulsion 3 | . . . 3 Utility 1 | . . . 1 Weapon 6 | . 1 . 5 Highest Loss Streak 5 | . 1 . 5 To Critical Strikes . | . . . . Average Backups 9 | 2 8 11 11 Power 2 | . 1 2 3 Propulsion 2 | 1 2 2 2 Utility 3 | . 2 4 4 Weapon 1 | . 1 3 1 Tool/Special . | . . . . Unused Backups 14 | . 4 . 10 Power 5 | . 1 . 4 Propulsion 4 | . 2 . 2 Utility 4 | . . . 4 Weapon 1 | . 1 . . Tool/Special . | . . . . Average Slot Usage (%) 95 | . 99 100 89 Engine 13 | . 14 14 12 Treads 24 | . 28 28 20 Device 10 | . 14 14 7 Storage 14 | . 14 14 14 Protection 2 | . . . 5 Energy Gun 5 | . 12 . . Ballistic Gun 17 | . 14 27 19 Slashing Weapon 3 | . 1 . 6 Peak Build Rating 12 | 9 10 10 12 Average Rating 9 | 6 9 8 9 On Entrance 6 | . 9 10 8 Naked Turns . | . . . . Heaviest Build 30 | 14 29 29 30 Greatest Support 40 | 40 40 40 40 Greatest Overweight (x) 1 | . . . 1 Average Overweight (x) . | . . . . Largest Inventory Capacity 15 | 8 15 15 15 Average Capacity 12 | 7 9 15 15 Most Carried 15 | 4 11 12 15 Average Carried 10 | 2 8 11 12 Final Capacity 15 | 8 15 15 15 Final Carried 12 | 4 11 12 11 Class Distribution -------------------- 100% | Mutant Dominant Class ---------------- Mutant | -10/Materials Mutant | -10/Mines Mutant | -10/Subcaves Resources | -11 -10 -10 -10 ----------- Run | Yrd Mat Min Sub Matter Collected 634 | 282 66 . 286 Remotely . | . . . . Salvage Created 689 | 95 311 . 283 Parts 49 | 3 28 . 18 Haulers Intercepted 1 | . 1 . . Recyclers Shooed . | . . . . Parts Field Recycled . | . . . . Retrieved Matter . | . . . . Parts Self-Destructed 12 | . . . 12 Prevented . | . . . . Kills | -11 -10 -10 -10 ------- Run | Yrd Mat Min Sub Combat Hostiles Destroyed 16 | . 9 . 7 Guns 14 | . 9 . 5 Cannons 2 | . . . 2 Classes Destroyed 9 | 2 5 . 2 Tunneler 1 | 1 . . . Hauler 1 | . 1 . . Recycler 1 | 1 . . . Operator 2 | . 2 . . Watcher 1 | . 1 . . Swarmer 6 | . 6 . . Grunt 5 | . 3 . 2 Sentry 1 | . . . 1 Subdweller 4 | . . . 4 Best Kill Streak 4 | 1 4 . 3 Combat Bots Only 3 | . 3 . 3 Max Kills in Single Turn 1 | 1 1 . 1 Gunslinging . | . . . . Exploded . | . . . . Melee . | . . . . Uniques/NPCs Destroyed . | . . . . Combat | -11 -10 -10 -10 -------- Run | Yrd Mat Min Sub Hostile Shots Fired 122 | . 44 . 78 Missed 23 | . 8 . 15 Hits 99 | . 36 . 63 Projectile 99 | . 36 . 63 Critical Strikes 5 | . 2 . 3 Damage Taken 1602 | . 334 . 1268 Core 262 | . 31 . 231 Absorbed by Shields . | . . . . Redirected to Shielding 29 | . . . 29 Core Remaining (%) 100 | 100 . . . Volleys Fired 101 | 12 35 7 47 Largest 2 | 2 2 1 2 Hottest 70 | 70 70 20 70 Shots Fired 176 | 24 69 7 76 Gun 163 | 24 69 7 63 Cannon 13 | . . . 13 Launcher . | . . . . Special . | . . . . Kinetic 129 | 12 35 7 75 Thermal 47 | 12 34 . 1 Explosive . | . . . . Electromagnetic . | . . . . Robot Hit Streak 15 | 3 9 7 15 Robot Miss Streak 3 | 3 2 2 2 Penetration Max . | . . . . Secondary Targets 2 | . 1 . 1 Max Gunslinging Chain 1 | . 1 . 1 Shots Hit Robots 123 | 10 49 4 60 Core Hits 46 | 3 24 1 18 Critical Kills . | . . . . Critical Parts Destroyed . | . . . . Critical Strikes 5 | 1 3 . 1 Burn 4 | 1 3 . . Blast 1 | . . . 1 Melee Attacks 6 | . 6 . . Impact . | . . . . Slashing 6 | . 6 . . Piercing . | . . . . Sneak Attacks . | . . . . Combat Hostiles . | . . . . Follow-up Attacks . | . . . . Damage Inflicted 1197 | 99 502 37 559 Guns 1061 | 99 502 37 423 Cannons 136 | . . . 136 Explosions . | . . . . Melee . | . . . . Ramming . | . . . . Kinetic 814 | 38 192 37 547 Thermal 383 | 61 310 . 12 Explosive . | . . . . Electromagnetic . | . . . . Impact . | . . . . Slashing . | . . . . Piercing . | . . . . Highest Corruption . | . . . . Average Corruption . | . . . . Corruption Purged . | . . . . Corruption Blocked . | . . . . Overload Shots . | . . . . Overflow Damage . | . . . . Projectiles . | . . . . Explosions . | . . . . Melee . | . . . . Knockbacks 2 | . . . 2 Impact . | . . . . Kinetic 2 | . . . 2 Secondary . | . . . . Self-Inflicted Damage . | . . . . Shots . | . . . . Rammed . | . . . . Targets Rammed . | . . . . Kicked . | . . . . Crushed . | . . . . Highest Temperature 178 | 80 178 . . Average Temperature 47 | 30 52 . . Received Heat Transfer 468 | . 108 . 360 Siege Activations . | . . . . Martial Activations . | . . . . Shielding Activations . | . . . . Robots Disrupted . | . . . . Combat Hostiles . | . . . . Robots Corrupted . | . . . . Combat Hostiles . | . . . . Parts Fried . | . . . . Impact Corruptions . | . . . . Robots Melted . | . . . . Combat Hostiles . | . . . . Parts Melted 4 | 1 2 . 1 Heat Transferred 1443 | 259 1147 . 37 Parts Sabotaged . | . . . . Parts Stolen . | . . . . Parts Stripped . | . . . . Power Chain Reactions . | . . . . Alert | -11 -10 -10 -10 ------- Run | Yrd Mat Min Sub Maximum Alert Level . | . . . . Low Security (%) 100 | 100 100 100 . Level 1 . | . . . . Level 2 . | . . . . Level 3 . | . . . . Level 4 . | . . . . Level 5 . | . . . . High Security . | . . . . Max Security . | . . . . Peak Influence 146 | 5 146 19 . Initial 19 | . . 19 . Average 31 | . 41 2 . Influence Increases 340 | 10 270 . 60 Destroy 0b10 Robot/C 240 | . 180 . 60 Destroy 0b10 Robot/NC 30 | 10 20 . . Destroy Leader 44 | . 44 . . Successful Hack 10 | . 10 . . Destroy Structure 1 | . 1 . . Lose Combat Pursuer 15 | . 15 . . Influence Decreases 340 | 10 219 51 60 Entered New Map 32 | . . 32 . Time Decay 282 | 10 209 19 44 Lost Part 26 | . 10 . 16 Squads Dispatched 3 | . 3 . . Investigation 1 | . 1 . . Extermination . | . . . . Reinforcement 2 | . 2 . . Assault . | . . . . Garrison . | . . . . Intercept . | . . . . Searches Triggered . | . . . . Construction Impeded . | . . . . Haulers Reinforced . | . . . . Active Scanning Responses . | . . . . Cargo Convoy Interrupts . | . . . . Stealth | -11 -10 -10 -10 --------- Run | Yrd Mat Min Sub Distress Signals 1 | . 1 . . Communications Jammed . | . . . . Distress Signals . | . . . . Times Spotted 26 | . 17 . 9 Peak Tracking Total 4 | . 4 . 3 Tactical Retreats 1 | . 1 . . Traps | -11 -10 -10 -10 ------- Run | Yrd Mat Min Sub Traps Triggered 1 | . 1 . . Indirectly . | . . . . Trap Hack Attempts . | . . . . Triggered . | . . . . Disarmed . | . . . . Reprogrammed . | . . . . Reused . | . . . . Traps Extracted . | . . . . Installed . | . . . . Triggered . | . . . . Machines | -11 -10 -10 -10 ---------- Run | Yrd Mat Min Sub Machines Disabled . | . . . . Max in Single Turn . | . . . . Machines Repaired . | . . . . Machines Dismantled . | . . . . Machines Sabotaged . | . . . . Overloaded Fab Kills . | . . . . Hacking | -11 -10 -10 -10 --------- Run | Yrd Mat Min Sub Machines Accessed 4 | . 4 . . Terminals 4 | . 4 . . Fabricators . | . . . . Repair Stations . | . . . . Recycling Units . | . . . . Scanalyzers . | . . . . Garrison Access . | . . . . Total Hacks 12 | . 12 . . Successful 5 | . 5 . . Failed 7 | . 7 . . Catastrophic 3 | . 3 . . Database Lockouts . | . . . . Manual 3 | . 3 . . Terminals 12 | . 12 . . Fabricators . | . . . . Repair Stations . | . . . . Recycling Units . | . . . . Scanalyzers . | . . . . Garrison Access . | . . . . Terminal Hacks 5 | . 5 . . Record 1 | . 1 . . Prototype ID Bank 1 | . 1 . . Locate Traps 1 | . 1 . . Hauler Manifests 1 | . 1 . . Zone Layout 1 | . 1 . . Fabricator Hacks . | . . . . Repair Station Hacks . | . . . . Recycling Unit Hacks . | . . . . Scanalyzer . | . . . . Garrison Access Hacks . | . . . . Unauthorized Hacks . | . . . . Terminals . | . . . . Fabricators . | . . . . Repair Stations . | . . . . Recycling Units . | . . . . Scanalyzers . | . . . . Garrison Access . | . . . . Data Cores Recovered 1 | . 1 . . Used . | . . . . Hacking Detections 3 | . 3 . . Full Trace Events 1 | . 1 . . Feedback Events . | . . . . Feedback Blocked . | . . . . Robot Schematics Acquired . | . . . . Robots Built . | . . . . Authchips . | . . . . Time . | . . . . Total Robot Build Rating . | . . . . Part Schematics Acquired . | . . . . Parts Built . | . . . . Authchips . | . . . . Time . | . . . . Total Part Build Rating . | . . . . Parts Repaired . | . . . . Time . | . . . . Parts Recycled . | . . . . Recycled Matter . | . . . . Retrieved Matter . | . . . . Retrieved Components . | . . . . Parts Scanalyzed . | . . . . Part Schematics Acquired . | . . . . Parts Damaged . | . . . . Bothacking | -11 -10 -10 -10 ------------ Run | Yrd Mat Min Sub Used RIF Installer . | . . . . Robots Hacked . | . . . . Non-combat . | . . . . Combat . | . . . . Robot Hacks Applied . | . . . . Relay Couplers Released . | . . . . Fabnet Peak Effective % . | . . . . Robots Rewired . | . . . . Allies Hacked . | . . . . Hacks Repelled . | . . . . Allies | -11 -10 -10 -10 -------- Run | Yrd Mat Min Sub Total Allies . | . . . . Largest Group . | . . . . Highest-Rated Group . | . . . . Highest-Rated Ally . | . . . . Total Orders . | . . . . Ally Attacks . | . . . . Total Damage . | . . . . Kills . | . . . . Allies Corrupted . | . . . . Allies Melted . | . . . . Intel | -11 -10 -10 -10 ------- Run | Yrd Mat Min Sub Active Infowar (turns) 1823 | 24 1023 212 564 Terrain 1434 | 24 1023 53 334 Structural 389 | . . 159 230 Robot Analysis Total . | . . . . Derelict Logs Recovered 1 | . . 1 . Drone Launches . | . . . . Drone Recoveries . | . . . . Exploration | -11 -10 -10 -10 ------------- Run | Yrd Mat Min Sub Turns Passed 2476 | 135 1023 212 1106 Spaces Moved 1171 | 56 544 122 449 Core 3 | 3 . . . Treads 1168 | 53 544 122 449 Legs . | . . . . Wheels . | . . . . Hover . | . . . . Flight . | . . . . Fastest Speed 50 | 50 160 160 160 Average Speed 171 | 154 160 160 190 Slowest Speed 240 | 160 160 160 240 Overloaded Moves . | . . . . Propulsion Burnouts . | . . . . Robots Hopped . | . . . . Potential Cave-ins . | . . . . Cave-ins Triggered . | . . . . Exploration Rate (%) 34 | 4 71 27 34 Regions Visited 3 Branch Regions 2 Pre-discovered Areas 1 | . . 1 . Known Exits Taken . | . . . . Unknown Exits Taken 3 | 1 1 1 . Scrap Searched . | . . . . Spaces Dug 1 | . 1 . . Terrain Destroyed 2 | . 1 . 1 Melee 1 | . 1 . . Projectile 1 | . . . 1 AOE . | . . . . Terrain Rammed . | . . . . Walls Destroyed . | . . . . Machines Disabled . | . . . . Actions | -11 -10 -10 -10 --------- Run | Yrd Mat Min Sub Total 1471 | 80 626 132 633 Wait 135 | 2 20 1 112 Move 1168 | 55 543 121 449 Hop . | . . . . Pick Up 26 | 4 12 1 9 Fast Attach 8 | 7 . . 1 Attach 10 | . 1 . 9 Detach . | . . . . Swap 10 | . 3 2 5 Drop 7 | . 6 . 1 Fire 101 | 12 35 7 47 Melee 6 | . 6 . . Ram . | . . . . Kick . | . . . . Crush . | . . . . Escape Stasis . | . . . . Rewire . | . . . . Trap . | . . . . Miscellaneous . | . . . . Route ------- -11/Scrapyard -10/Materials (discovered 5 exits: [*Mat x3] / [*Min] / [*Sub]) -10/Mines -10/Subcaves History --------- Turn | Location | Event 3 | -11/Scrapyard | Discovered new exit (range 16) 136 | -11/Scrapyard | Entered Materials 301 | -10/Materials | Discovered new exit (range 13) 308 | -10/Materials | Build established: Mutant 347 | -10/Materials | Discovered new exit (range 6) 475 | -10/Materials | Discovered new exit (range 6) 511 | -10/Materials | Discovered new exit (range 6) 715 | -10/Materials | Discovered new exit (range 15) 1159 | -10/Materials | Entered Mines 1227 | -10/Mines | Learned location of Zion (-7) 1275 | -10/Mines | Discovered new exit (range 8) 1371 | -10/Mines | Entered Subcaves 1372 | -10/Subcaves | Approached by a straggling Scientist 1632 | -10/Subcaves | Shifting Twisted Machinery released Battle Cannon 1636 | -10/Subcaves | Shifting Twisted Machinery released Sub. Power Source 1861 | -10/Subcaves | Lost 5 parts (1n1u3w) 1927 | -10/Subcaves | Core integrity fell below 50% 1961 | -10/Subcaves | Core integrity fell below 20% 1984 | -10/Subcaves | Lost 3 parts (1p1n1w) 2477 | -10/Subcaves | Destroyed by IT-RCN(R) with Subdweller Laser Last Messages --------------- 01866_ Acquired 2 matter. 01875_ Acquired Ion Engine. RY-X5K(c): "I think it's somewhere northeast of here" 01922_ Lgt. Assault Rifle destroyed. 01924_ Ion Engine destroyed. RY-X5K(c): "I think it's somewhere northeast of here" 01953_ Lgt. Treads destroyed. 01962_ L4-UJ6(R) destroyed. 01966_ Acquired 52 matter. 01971_ Acquired Sub. Optics. RY-X5K(c): "I think it's somewhere northeast of here" RY-X5K(c): "I think it's somewhere east of here" 02117_ Sub. Power Source shoots sparks and powers down. RY-X5K(c): "I think it's somewhere east of here" 02475_ Lgt. Assault Rifle destroyed. Map ----- +----------------------------------------------------+ | ?????????????????????????????????????????????????? | | ?????????????????????????????????????????????????? | | ?????????????????????????????????????????????????? | | ?????????????????????????????????????????????????? | | ?????????????????????????????????????????????????? | | ?????????????????????????????????????????????????? | | ?????????????????????????????????????????????????? | | ?????????????????????????????????????????????????? | | ?????????????????????????????????????????????????? | | ?????????????????????????????????????????????????? | | ????????????????????#????????????????????????????? | | ?????????????????????????????????????????????????? | | ?????????????????????????????????????????????????? | | ????????###???#######??????? ??????#?????????????? | | ?????#### ??## ###???????????##?????????????? | | ???### #??# ##????????????#?#??????????? | | ???# ##?# #????????? ?????? ????????? | | ??## ##?# #??#???##????"??? ????????? | | ??# #### #?????##?? ???????????????? | | ### ## #####?????????????? ? ? ??????? | | #?#?????? ""???? ???? ?? ?????? | | #?#?#?#????? ???????????? ????? | | #?###?###????#??#?????????????? | | ### ###"##??#??????? ?????????? | | ## R #####?????? ??? ?????? | | # ### @ ## #????? ?????????? | | ### ### ## #?#???????? ?????? | | ### ### ## ##????? ?? ??????? | | ## ## #?#??#??????????? | | #### ### #######?????????? | | ##??# ##### ### #?????????? | | ## #???### ###?# ## #? ???????? | | #?## ##?????# #???# #### ##? ???????? | | #?# ##????# #?######??# #####? ?#??????? | | ## #???# ##????#????## #????#?????????? | | #???# #???????#?#?# ##??????????????? | | #???## ##?####??#???## #####????#????????? | | ###??######?# #??#??#?####?#??????????????? | | #???## ##?# #???????#??#????#??????#?????? | | ##?## ## #?????#?????#?##??#??????????? | | #?? #?????#??#????#??????????????? | | #??# ##?????#??????????#??????????? | | ##?# #??#?????????????#??????????? | | ### ##????#?????????????????????? | | #??????????????????????????? | | # #??????????????????????????? | | # ##??????????????????????????? | | # ### #####???#####???????????????????# | | ###?# #???????#####???????????????????# | | #???#### #???????## ####????#????????????? | +----------------------------------------------------+ Best States ------------- Heat Dissipation 25 Energy Generation 15 Energy Capacity 250 Matter Stores 300 Matter Capacity 300 Sight Range 16 Terrain Scan Range 16 Terrain Scan Density 10 Weapon Shielding 33 Evasion (%) 40 Recoil Reduction 2 Item Schematics ----------------- None Robot Schematics ------------------ None Fabricated ------------ Nothing Repaired ---------- Nothing Alien Tech Used ----------------- None Achievements -------------- None Challenges ------------ None Game ------ Seed ExpertAblativeInjector Manual? 0 Play Time 00:15:30 Cumulative 136.6 hours Start 2025.05.07 @ 21:00:10 End 2025.05.07 @ 21:13:31 Sessions 1 Manual Loads 0 Difficulty Rogue Special Mode None Game No. 80 Rogue 72 Adventurer 8 Explorer 0 Win Type - Total 2 Types 2/0/0/0/0/0/0/0/0/0 Lore% 56 Gallery% 60 Achievement% 55 Wizard Run 0 Options --------- Layout 2 ASCII 0 Keyboard 1 Movement Numpad Keybinds 1 Fullscreen 1 Font 48/Smallcaps Map View 50x44 Zoom Use 0% Tactical HUD 1 Map Filters NONE Filters NONE Steam 1 RUN: d0c74269-ece3-45a5-a879-d154ba33fd5f